[Event "Titled Tuesday Blitz May 9 Late 2023"]
[White "Komov, Roman"]
[Black "Papayan, Oleg"]
[WhiteFideId "24175714"]
[BlackFideId "4193911"]
[WhiteElo "2189"]
[BlackElo "2171"]
[Result "1-0"]
[Round "05"]
[TimeControl "180+2"]
[Date "2023.05.09"]
[WhiteClock "0:01:15"]
[BlackClock "0:00:00"]

1. e4 {[%clk 0:02:58]}  c5 {[%clk 0:02:57]} 2. c3 {[%clk 0:02:55]}  Nf6 {[%clk 0:02:56]} 3. e5 {[%clk 0:02:55]}  Nd5 {[%clk 0:02:57]} 4. d4 {[%clk 0:02:56]}  cxd4 {[%clk 0:02:57]} 5. Nf3 {[%clk 0:02:56]}  Nc6 {[%clk 0:02:56]} 6. Bc4 {[%clk 0:02:55]}  Nb6 {[%clk 0:02:54]} 7. Bb3 {[%clk 0:02:56]}  d5 {[%clk 0:02:54]} 8. exd6 {[%clk 0:02:51]}  Qxd6 {[%clk 0:02:53]} 9. O-O {[%clk 0:02:50]}  d3 {[%clk 0:02:34]} 10. Na3 {[%clk 0:02:24]}  Bf5 {[%clk 0:02:31]} 11. Nb5 {[%clk 0:02:19]}  Qd7 {[%clk 0:02:25]} 12. Bf4 {[%clk 0:02:16]}  Rc8 {[%clk 0:02:19]} 13. Re1 {[%clk 0:02:15]}  e6 {[%clk 0:02:20]} 14. Nfd4 {[%clk 0:02:13]}  Nxd4 {[%clk 0:01:57]} 15. Nxd4 {[%clk 0:02:14]}  Rc5 {[%clk 0:01:36]} 16. a4 {[%clk 0:02:04]}  a5 {[%clk 0:01:24]} 17. Be3 {[%clk 0:01:54]}  Be7 {[%clk 0:01:16]} 18. Nxf5 {[%clk 0:01:53]}  Rxf5 {[%clk 0:01:12]} 19. Bxb6 {[%clk 0:01:53]}  O-O {[%clk 0:01:12]} 20. Bd4 {[%clk 0:01:50]}  Rd8 {[%clk 0:00:54]} 21. Qxd3 {[%clk 0:01:47]}  e5 {[%clk 0:00:54]} 22. Bc2 {[%clk 0:01:47]}  g6 {[%clk 0:00:30]} 23. Qe2 {[%clk 0:01:41]}  Rh5 {[%clk 0:00:21]} 24. Bxe5 {[%clk 0:01:40]}  Re8 {[%clk 0:00:15]} 25. Rad1 {[%clk 0:01:36]}  Qc6 {[%clk 0:00:13]} 26. Qf3 {[%clk 0:01:31]}  Qc8 {[%clk 0:00:06]} 27. Bb3 {[%clk 0:01:26]}  Rf5 {[%clk 0:00:04]} 28. Qg3 {[%clk 0:01:23]}  Bc5 {[%clk 0:00:03]} 29. Bd4 {[%clk 0:01:22]}  Rxe1+ {[%clk 0:00:03]} 30. Rxe1 {[%clk 0:01:23]}  Bxd4 {[%clk 0:00:04]} 31. cxd4 {[%clk 0:01:24]}  Qd8 {[%clk 0:00:04]} 32. Qe3 {[%clk 0:01:23]}  Kg7 {[%clk 0:00:03]} 33. d5 {[%clk 0:01:23]}  Qd6 {[%clk 0:00:03]} 34. Qd4+ {[%clk 0:01:22]}  Kh6 {[%clk 0:00:03]} 35. h4 {[%clk 0:01:18]}  Rf4 {[%clk 0:00:02]} 36. Qe3 {[%clk 0:01:16]}  Kg7 {[%clk 0:00:02]} 37. Qe5+ {[%clk 0:01:17]}  Qxe5 {[%clk 0:00:03]} 38. Rxe5 {[%clk 0:01:17]}  Rxh4 {[%clk 0:00:03]} 39. d6 {[%clk 0:01:15]}  Rd4 {[%clk 0:00:03]} 40. Re7 {[%clk 0:01:14]}  Rxd6 {[%clk 0:00:02]} 41. Rxf7+ {[%clk 0:01:14]}  Kh6 {[%clk 0:00:03]} 42. Rxb7 {[%clk 0:01:15]}  Rd1+ {[%clk 0:00:00]} 43. Bxd1 {[%clk 0:01:15]} 1-0


[Site "https://www.chess.com"]

[Event "Titled Tuesday Blitz May 9 Late 2023"]
[White "Bayo Milagro, Alvaro"]
[Black "Pein, Jonathan"]
[WhiteFideId "22275240"]
[BlackFideId "417092"]
[WhiteElo "2270"]
[BlackElo "2151"]
[Result "1-0"]
[Round "05"]
[TimeControl "180+2"]
[Date "2023.05.09"]
[WhiteClock "0:00:04"]
[BlackClock "0:00:06"]

1. Nf3 {[%clk 0:02:57]}  d5 {[%clk 0:02:56]} 2. c4 {[%clk 0:02:56]}  dxc4 {[%clk 0:02:52]} 3. Na3 {[%clk 0:02:53]}  g6 {[%clk 0:02:51]} 4. Nxc4 {[%clk 0:02:53]}  Bg7 {[%clk 0:02:52]} 5. g3 {[%clk 0:02:49]}  Nc6 {[%clk 0:02:52]} 6. Bg2 {[%clk 0:02:49]}  e5 {[%clk 0:02:53]} 7. d3 {[%clk 0:02:47]}  Nge7 {[%clk 0:02:53]} 8. O-O {[%clk 0:02:47]}  O-O {[%clk 0:02:53]} 9. Bd2 {[%clk 0:02:45]}  h6 {[%clk 0:02:53]} 10. Qc1 {[%clk 0:02:43]}  Kh7 {[%clk 0:02:50]} 11. Bc3 {[%clk 0:02:43]}  Nd4 {[%clk 0:02:48]} 12. Qd1 {[%clk 0:02:37]}  Nec6 {[%clk 0:02:32]} 13. b4 {[%clk 0:02:33]}  Bg4 {[%clk 0:02:07]} 14. Nxd4 {[%clk 0:02:19]}  Nxd4 {[%clk 0:01:51]} 15. Bxd4 {[%clk 0:02:17]}  exd4 {[%clk 0:01:44]} 16. Bxb7 {[%clk 0:02:16]}  Rb8 {[%clk 0:01:39]} 17. Bg2 {[%clk 0:02:12]}  Rxb4 {[%clk 0:01:39]} 18. h3 {[%clk 0:02:09]}  Be6 {[%clk 0:01:37]} 19. Rb1 {[%clk 0:02:07]}  a5 {[%clk 0:01:26]} 20. Nxa5 {[%clk 0:02:02]}  Rxb1 {[%clk 0:01:26]} 21. Qxb1 {[%clk 0:02:01]}  Qd7 {[%clk 0:01:19]} 22. Kh2 {[%clk 0:01:56]}  Qa4 {[%clk 0:01:14]} 23. Nc6 {[%clk 0:01:35]}  Qxa2 {[%clk 0:01:05]} 24. Qxa2 {[%clk 0:01:34]}  Bxa2 {[%clk 0:01:05]} 25. Ra1 {[%clk 0:01:31]}  Bb3 {[%clk 0:00:55]} 26. Bf3 {[%clk 0:01:09]}  Bf6 {[%clk 0:00:16]} 27. Kg2 {[%clk 0:01:00]}  Kg7 {[%clk 0:00:12]} 28. Ra7 {[%clk 0:00:52]}  Rc8 {[%clk 0:00:12]} 29. Rb7 {[%clk 0:00:47]}  Bd1 {[%clk 0:00:04]} 30. e4 {[%clk 0:00:44]}  Bxf3+ {[%clk 0:00:03]} 31. Kxf3 {[%clk 0:00:44]}  g5 {[%clk 0:00:04]} 32. Na7 {[%clk 0:00:42]}  Re8 {[%clk 0:00:02]} 33. Rxc7 {[%clk 0:00:42]}  Be5 {[%clk 0:00:02]} 34. Rb7 {[%clk 0:00:39]}  Re6 {[%clk 0:00:02]} 35. Nb5 {[%clk 0:00:36]}  Rf6+ {[%clk 0:00:02]} 36. Ke2 {[%clk 0:00:35]}  h5 {[%clk 0:00:03]} 37. Na3 {[%clk 0:00:33]}  h4 {[%clk 0:00:03]} 38. gxh4 {[%clk 0:00:31]}  gxh4 {[%clk 0:00:03]} 39. Nc4 {[%clk 0:00:31]}  Bf4 {[%clk 0:00:03]} 40. Rb5 {[%clk 0:00:27]}  Rg6 {[%clk 0:00:03]} 41. Rf5 {[%clk 0:00:26]}  Bc7 {[%clk 0:00:03]} 42. Kf3 {[%clk 0:00:21]}  Rg1 {[%clk 0:00:01]} 43. e5 {[%clk 0:00:20]}  Rh1 {[%clk 0:00:02]} 44. Ke4 {[%clk 0:00:20]}  Rxh3 {[%clk 0:00:02]} 45. Kxd4 {[%clk 0:00:20]}  Rh2 {[%clk 0:00:02]} 46. Ke4 {[%clk 0:00:16]}  Kg6 {[%clk 0:00:03]} 47. Ne3 {[%clk 0:00:14]}  h3 {[%clk 0:00:03]} 48. Rf3 {[%clk 0:00:13]}  Rh1 {[%clk 0:00:03]} 49. d4 {[%clk 0:00:13]}  Kg5 {[%clk 0:00:02]} 50. Rg3+ {[%clk 0:00:12]}  Kh6 {[%clk 0:00:02]} 51. Nf5+ {[%clk 0:00:12]}  Kh5 {[%clk 0:00:03]} 52. Kf4 {[%clk 0:00:10]}  f6 {[%clk 0:00:03]} 53. Rg8 {[%clk 0:00:05]}  h2 {[%clk 0:00:03]} 54. f3 {[%clk 0:00:04]}  fxe5+ {[%clk 0:00:04]} 55. dxe5 {[%clk 0:00:04]}  Bxe5+ {[%clk 0:00:04]} 56. Kxe5 {[%clk 0:00:03]}  Re1+ {[%clk 0:00:05]} 57. Kf4 {[%clk 0:00:04]}  h1=Q {[%clk 0:00:06]} 58. Rg5# {[%clk 0:00:04]} 1-0


[Site "https://www.chess.com"]

[Event "Titled Tuesday Blitz May 9 Late 2023"]
[White "Balla, Tamas-Kristof"]
[Black "brm72"]
[WhiteFideId "1208497"]
[WhiteElo "2334"]
[BlackElo "2551"]
[Result "1-0"]
[Round "05"]
[TimeControl "180+2"]
[Date "2023.05.09"]
[WhiteClock "0:01:22"]
[BlackClock "0:01:41"]

1. f4 {[%clk 0:03:00]}  Nf6 {[%clk 0:02:58]} 2. b3 {[%clk 0:03:00]}  g6 {[%clk 0:02:58]} 3. Bb2 {[%clk 0:03:01]}  Bg7 {[%clk 0:02:58]} 4. Nf3 {[%clk 0:03:01]}  O-O {[%clk 0:02:58]} 5. g3 {[%clk 0:03:01]}  d6 {[%clk 0:02:58]} 6. Bg2 {[%clk 0:03:01]}  Nc6 {[%clk 0:02:58]} 7. e3 {[%clk 0:03:00]}  Qe8 {[%clk 0:02:52]} 8. O-O {[%clk 0:02:50]}  e5 {[%clk 0:02:51]} 9. fxe5 {[%clk 0:02:48]}  Ng4 {[%clk 0:02:44]} 10. Nc3 {[%clk 0:02:47]}  Ngxe5 {[%clk 0:02:43]} 11. Nxe5 {[%clk 0:02:44]}  Nxe5 {[%clk 0:02:44]} 12. Rb1 {[%clk 0:02:40]}  c6 {[%clk 0:02:41]} 13. Ne4 {[%clk 0:02:28]}  Qd8 {[%clk 0:02:37]} 14. Ba3 {[%clk 0:02:19]}  c5 {[%clk 0:02:26]} 15. Nc3 {[%clk 0:02:10]}  Rb8 {[%clk 0:02:19]} 16. Nd5 {[%clk 0:01:54]}  b5 {[%clk 0:02:05]} 17. d4 {[%clk 0:01:54]}  Ng4 {[%clk 0:01:55]} 18. h3 {[%clk 0:01:50]}  Nh6 {[%clk 0:01:49]} 19. dxc5 {[%clk 0:01:45]}  b4 {[%clk 0:01:48]} 20. Bxb4 {[%clk 0:01:33]}  dxc5 {[%clk 0:01:46]} 21. Bxc5 {[%clk 0:01:31]}  Re8 {[%clk 0:01:46]} 22. Ne7+ {[%clk 0:01:24]}  Kh8 {[%clk 0:01:44]} 23. Qxd8 {[%clk 0:01:21]}  Rxd8 {[%clk 0:01:41]} 24. Nc6 {[%clk 0:01:22]} 1-0


[Site "https://www.chess.com"]

[Event "Titled Tuesday Blitz May 9 Late 2023"]
[White "Gasparyan, David"]
[Black "Garcia Cuenca, Victor"]
[WhiteFideId "13311980"]
[BlackFideId "2250829"]
[WhiteElo "2402"]
[BlackElo "2329"]
[Result "1-0"]
[Round "05"]
[TimeControl "180+2"]
[Date "2023.05.09"]
[WhiteClock "0:00:07"]
[BlackClock "0:00:00"]

1. Nf3 {[%clk 0:02:58]}  Nf6 {[%clk 0:02:59]} 2. g3 {[%clk 0:02:58]}  g6 {[%clk 0:02:59]} 3. Bg2 {[%clk 0:02:58]}  Bg7 {[%clk 0:03:00]} 4. O-O {[%clk 0:02:58]}  O-O {[%clk 0:03:01]} 5. Nc3 {[%clk 0:02:53]}  c5 {[%clk 0:03:01]} 6. e4 {[%clk 0:02:52]}  Nc6 {[%clk 0:03:00]} 7. d3 {[%clk 0:02:50]}  d6 {[%clk 0:03:00]} 8. Re1 {[%clk 0:02:45]}  e5 {[%clk 0:02:57]} 9. h3 {[%clk 0:02:43]}  h6 {[%clk 0:02:57]} 10. a3 {[%clk 0:02:35]}  Be6 {[%clk 0:02:54]} 11. Rb1 {[%clk 0:02:34]}  Qd7 {[%clk 0:02:38]} 12. Kh2 {[%clk 0:02:33]}  Rac8 {[%clk 0:02:33]} 13. Bd2 {[%clk 0:02:32]}  Nd4 {[%clk 0:02:30]} 14. b4 {[%clk 0:02:30]}  b6 {[%clk 0:02:07]} 15. Nxd4 {[%clk 0:02:05]}  cxd4 {[%clk 0:02:06]} 16. Ne2 {[%clk 0:02:04]}  Qa4 {[%clk 0:01:45]} 17. Rb2 {[%clk 0:02:03]}  d5 {[%clk 0:01:45]} 18. f4 {[%clk 0:01:57]}  dxe4 {[%clk 0:01:31]} 19. fxe5 {[%clk 0:01:46]}  Nh5 {[%clk 0:01:23]} 20. Bxe4 {[%clk 0:01:24]}  Bxe5 {[%clk 0:01:12]} 21. Bxh6 {[%clk 0:01:24]}  Qxa3 {[%clk 0:00:57]} 22. Qa1 {[%clk 0:01:21]}  Qxa1 {[%clk 0:00:47]} 23. Rxa1 {[%clk 0:01:22]}  Rfe8 {[%clk 0:00:44]} 24. Rxa7 {[%clk 0:01:18]}  Nf6 {[%clk 0:00:24]} 25. Bg2 {[%clk 0:01:10]}  Bd5 {[%clk 0:00:25]} 26. Nf4 {[%clk 0:01:06]}  Bxg2 {[%clk 0:00:23]} 27. Kxg2 {[%clk 0:01:02]}  Bxf4 {[%clk 0:00:23]} 28. Bxf4 {[%clk 0:01:01]}  Re2+ {[%clk 0:00:24]} 29. Kf3 {[%clk 0:00:57]}  Rcxc2 {[%clk 0:00:19]} 30. Rxc2 {[%clk 0:00:55]}  Rxc2 {[%clk 0:00:19]} 31. Ra8+ {[%clk 0:00:55]}  Kh7 {[%clk 0:00:17]} 32. Be5 {[%clk 0:00:55]}  Ng8 {[%clk 0:00:16]} 33. Bxd4 {[%clk 0:00:55]}  Rd2 {[%clk 0:00:13]} 34. Ke3 {[%clk 0:00:50]}  Rg2 {[%clk 0:00:11]} 35. Kf3 {[%clk 0:00:46]}  Rd2 {[%clk 0:00:10]} 36. Bxb6 {[%clk 0:00:47]}  Rxd3+ {[%clk 0:00:10]} 37. Kf2 {[%clk 0:00:47]}  Rb3 {[%clk 0:00:11]} 38. Bc5 {[%clk 0:00:46]}  Nf6 {[%clk 0:00:10]} 39. Bd4 {[%clk 0:00:45]}  Ne4+ {[%clk 0:00:10]} 40. Ke1 {[%clk 0:00:43]}  g5 {[%clk 0:00:10]} 41. Rb8 {[%clk 0:00:27]}  Nxg3 {[%clk 0:00:09]} 42. b5 {[%clk 0:00:25]}  Nf5 {[%clk 0:00:10]} 43. Bc5 {[%clk 0:00:20]}  Rc3 {[%clk 0:00:05]} 44. Bf2 {[%clk 0:00:18]}  Rb3 {[%clk 0:00:04]} 45. b6 {[%clk 0:00:19]}  Nd6 {[%clk 0:00:05]} 46. Rd8 {[%clk 0:00:18]}  Nc4 {[%clk 0:00:04]} 47. Rb8 {[%clk 0:00:16]}  Nxb6 {[%clk 0:00:03]} 48. Rxb6 {[%clk 0:00:14]}  Rxh3 {[%clk 0:00:04]} 49. Rf6 {[%clk 0:00:13]}  Kg7 {[%clk 0:00:03]} 50. Bd4 {[%clk 0:00:13]}  Rh4 {[%clk 0:00:03]} 51. Rd6+ {[%clk 0:00:12]}  Kh7 {[%clk 0:00:02]} 52. Kf2 {[%clk 0:00:13]}  Rf4+ {[%clk 0:00:01]} 53. Kg3 {[%clk 0:00:13]}  f5 {[%clk 0:00:02]} 54. Bf6 {[%clk 0:00:11]}  Rg4+ {[%clk 0:00:03]} 55. Kf3 {[%clk 0:00:11]}  Kg6 {[%clk 0:00:03]} 56. Be7+ {[%clk 0:00:11]}  Kf7 {[%clk 0:00:04]} 57. Bd8 {[%clk 0:00:11]}  Ke8 {[%clk 0:00:04]} 58. Bb6 {[%clk 0:00:10]}  Kf7 {[%clk 0:00:05]} 59. Bd4 {[%clk 0:00:09]}  Rh4 {[%clk 0:00:04]} 60. Be5 {[%clk 0:00:06]}  Rh3+ {[%clk 0:00:03]} 61. Kg2 {[%clk 0:00:06]}  Ra3 {[%clk 0:00:04]} 62. Rf6+ {[%clk 0:00:06]}  Ke7 {[%clk 0:00:04]} 63. Rh6 {[%clk 0:00:05]}  g4 {[%clk 0:00:05]} 64. Bf6+ {[%clk 0:00:03]}  Ke6 {[%clk 0:00:05]} 65. Bb2+ {[%clk 0:00:03]}  Kd5 {[%clk 0:00:06]} 66. Bxa3 {[%clk 0:00:04]}  Ke4 {[%clk 0:00:06]} 67. Bc1 {[%clk 0:00:05]}  f4 {[%clk 0:00:07]} 68. Rf6 {[%clk 0:00:05]}  f3+ {[%clk 0:00:08]} 69. Kg3 {[%clk 0:00:05]}  Kd3 {[%clk 0:00:08]} 70. Rf4 {[%clk 0:00:06]}  Kc2 {[%clk 0:00:09]} 71. Kxg4 {[%clk 0:00:06]}  Kxc1 {[%clk 0:00:00]} 72. Kxf3 {[%clk 0:00:07]} 1-0


[Site "https://www.chess.com"]

[Event "Titled Tuesday Blitz May 9 Late 2023"]
[White "Hollan, Petr"]
[Black "Sreyas Payyappat"]
[WhiteFideId "360945"]
[BlackFideId "46674969"]
[WhiteElo "2254"]
[BlackElo "2043"]
[Result "0-1"]
[Round "05"]
[TimeControl "180+2"]
[Date "2023.05.09"]
[WhiteClock "0:00:50"]
[BlackClock "0:02:01"]

1. e4 {[%clk 0:03:00]}  c6 {[%clk 0:02:59]} 2. b3 {[%clk 0:02:58]}  d5 {[%clk 0:03:00]} 3. exd5 {[%clk 0:02:59]}  cxd5 {[%clk 0:03:01]} 4. Bb2 {[%clk 0:03:00]}  Nc6 {[%clk 0:03:00]} 5. Bb5 {[%clk 0:02:59]}  Nf6 {[%clk 0:02:59]} 6. Nf3 {[%clk 0:02:59]}  g6 {[%clk 0:02:57]} 7. Ne5 {[%clk 0:02:50]}  Qb6 {[%clk 0:02:48]} 8. Nxc6 {[%clk 0:02:43]}  bxc6 {[%clk 0:02:45]} 9. Be2 {[%clk 0:02:28]}  Bg7 {[%clk 0:02:43]} 10. O-O {[%clk 0:02:27]}  O-O {[%clk 0:02:42]} 11. d3 {[%clk 0:02:28]}  Re8 {[%clk 0:02:37]} 12. Nd2 {[%clk 0:02:27]}  e5 {[%clk 0:02:35]} 13. Kh1 {[%clk 0:02:27]}  Ba6 {[%clk 0:02:24]} 14. a4 {[%clk 0:02:09]}  e4 {[%clk 0:02:22]} 15. dxe4 {[%clk 0:01:42]}  Bxe2 {[%clk 0:02:23]} 16. Qxe2 {[%clk 0:01:41]}  Nxe4 {[%clk 0:02:21]} 17. a5 {[%clk 0:00:50]}  Qc7 {[%clk 0:02:01]} 0-1


[Site "https://www.chess.com"]

[Event "Titled Tuesday Blitz May 9 Late 2023"]
[White "Pasti, Aron"]
[Black "Sanhueza, Cristian"]
[WhiteFideId "785857"]
[BlackFideId "116815"]
[WhiteElo "2173"]
[BlackElo "2174"]
[Result "1-0"]
[Round "05"]
[TimeControl "180+2"]
[Date "2023.05.09"]
[WhiteClock "0:00:19"]
[BlackClock "0:00:00"]

1. e4 {[%clk 0:03:00]}  e5 {[%clk 0:02:58]} 2. Nf3 {[%clk 0:03:00]}  Nc6 {[%clk 0:02:58]} 3. Bb5 {[%clk 0:03:00]}  a6 {[%clk 0:02:56]} 4. Ba4 {[%clk 0:03:01]}  Nf6 {[%clk 0:02:55]} 5. O-O {[%clk 0:03:01]}  Be7 {[%clk 0:02:54]} 6. Re1 {[%clk 0:03:01]}  b5 {[%clk 0:02:50]} 7. Bb3 {[%clk 0:03:01]}  d6 {[%clk 0:02:50]} 8. c3 {[%clk 0:03:00]}  O-O {[%clk 0:02:50]} 9. h3 {[%clk 0:03:00]}  Nb8 {[%clk 0:02:43]} 10. d4 {[%clk 0:03:00]}  Nbd7 {[%clk 0:02:43]} 11. a4 {[%clk 0:03:00]}  Bb7 {[%clk 0:02:41]} 12. Bc2 {[%clk 0:03:00]}  Re8 {[%clk 0:02:38]} 13. Nbd2 {[%clk 0:03:00]}  Bf8 {[%clk 0:02:38]} 14. Nf1 {[%clk 0:03:00]}  g6 {[%clk 0:02:36]} 15. g4 {[%clk 0:03:00]}  Nb6 {[%clk 0:02:35]} 16. Ng3 {[%clk 0:02:59]}  Nxa4 {[%clk 0:02:29]} 17. Bg5 {[%clk 0:02:16]}  h6 {[%clk 0:02:24]} 18. Bd2 {[%clk 0:02:12]}  Nxb2 {[%clk 0:02:01]} 19. Qc1 {[%clk 0:02:01]}  Nc4 {[%clk 0:02:01]} 20. Bxh6 {[%clk 0:02:01]}  exd4 {[%clk 0:01:59]} 21. Bxf8 {[%clk 0:01:59]}  Rxf8 {[%clk 0:01:57]} 22. cxd4 {[%clk 0:01:59]}  Kg7 {[%clk 0:01:45]} 23. Qg5 {[%clk 0:01:51]}  Rh8 {[%clk 0:01:39]} 24. e5 {[%clk 0:01:44]}  Nd5 {[%clk 0:01:33]} 25. e6 {[%clk 0:01:34]}  Qxg5 {[%clk 0:01:19]} 26. Nxg5 {[%clk 0:01:35]}  Nf4 {[%clk 0:01:12]} 27. exf7 {[%clk 0:01:27]}  Nd2 {[%clk 0:00:45]} 28. Re7 {[%clk 0:01:03]}  Nxh3+ {[%clk 0:00:27]} 29. Nxh3 {[%clk 0:01:03]}  Rxh3 {[%clk 0:00:28]} 30. Rxc7 {[%clk 0:00:54]}  Bd5 {[%clk 0:00:17]} 31. Be4 {[%clk 0:00:48]}  Nxe4 {[%clk 0:00:13]} 32. Nxe4 {[%clk 0:00:49]}  Bxe4 {[%clk 0:00:14]} 33. f3 {[%clk 0:00:44]}  Rg3+ {[%clk 0:00:14]} 34. Kh2 {[%clk 0:00:31]}  Rxf3 {[%clk 0:00:14]} 35. Re1 {[%clk 0:00:30]}  Rh8+ {[%clk 0:00:10]} 36. Kg1 {[%clk 0:00:30]}  Rg3+ {[%clk 0:00:09]} 37. Kf2 {[%clk 0:00:30]}  Rf3+ {[%clk 0:00:07]} 38. Ke2 {[%clk 0:00:26]}  Rh2+ {[%clk 0:00:06]} 39. Kd1 {[%clk 0:00:24]}  Rd3+ {[%clk 0:00:07]} 40. Kc1 {[%clk 0:00:24]}  Rxd4 {[%clk 0:00:00]} 41. Rf1 {[%clk 0:00:19]} 1-0


[Site "https://www.chess.com"]

[Event "Titled Tuesday Blitz May 9 Late 2023"]
[White "Kavutskiy, Konstantin"]
[Black "Arnold, Ken"]
[WhiteFideId "2026384"]
[BlackFideId "2056836"]
[WhiteElo "2323"]
[BlackElo "2384"]
[Result "0-1"]
[Round "05"]
[TimeControl "180+2"]
[Date "2023.05.09"]
[WhiteClock "0:00:00"]
[BlackClock "0:00:16"]

1. d4 {[%clk 0:03:00]}  Nf6 {[%clk 0:02:58]} 2. Bg5 {[%clk 0:03:00]}  d5 {[%clk 0:02:56]} 3. Nd2 {[%clk 0:02:59]}  c6 {[%clk 0:02:57]} 4. e3 {[%clk 0:02:58]}  Bf5 {[%clk 0:02:56]} 5. Bd3 {[%clk 0:02:56]}  Bxd3 {[%clk 0:02:55]} 6. cxd3 {[%clk 0:02:56]}  Qb6 {[%clk 0:02:55]} 7. Qb3 {[%clk 0:02:54]}  Nbd7 {[%clk 0:02:55]} 8. Ngf3 {[%clk 0:02:51]}  h6 {[%clk 0:02:53]} 9. Bh4 {[%clk 0:02:51]}  g5 {[%clk 0:02:51]} 10. Bg3 {[%clk 0:02:50]}  Nh5 {[%clk 0:02:49]} 11. O-O-O {[%clk 0:02:35]}  Nxg3 {[%clk 0:02:48]} 12. hxg3 {[%clk 0:02:35]}  Qxb3 {[%clk 0:02:48]} 13. Nxb3 {[%clk 0:02:35]}  Bg7 {[%clk 0:02:48]} 14. Kb1 {[%clk 0:02:31]}  e6 {[%clk 0:02:43]} 15. g4 {[%clk 0:02:12]}  a5 {[%clk 0:02:38]} 16. Nbd2 {[%clk 0:02:09]}  a4 {[%clk 0:02:36]} 17. a3 {[%clk 0:02:03]}  Ke7 {[%clk 0:02:35]} 18. Nf1 {[%clk 0:02:02]}  c5 {[%clk 0:02:26]} 19. dxc5 {[%clk 0:01:58]}  Nxc5 {[%clk 0:02:25]} 20. Ng3 {[%clk 0:01:58]}  Nb3 {[%clk 0:02:09]} 21. d4 {[%clk 0:01:56]}  Rhc8 {[%clk 0:02:01]} 22. Nd2 {[%clk 0:01:48]}  Nxd2+ {[%clk 0:01:59]} 23. Rxd2 {[%clk 0:01:49]}  Rc4 {[%clk 0:01:54]} 24. Rc1 {[%clk 0:01:39]}  b5 {[%clk 0:01:53]} 25. Rxc4 {[%clk 0:01:33]}  bxc4 {[%clk 0:01:53]} 26. Ne2 {[%clk 0:01:30]}  Kd7 {[%clk 0:01:48]} 27. Kc2 {[%clk 0:01:29]}  Kc6 {[%clk 0:01:45]} 28. Rd1 {[%clk 0:01:26]}  e5 {[%clk 0:01:41]} 29. Ng3 {[%clk 0:01:13]}  exd4 {[%clk 0:01:39]} 30. exd4 {[%clk 0:01:13]}  Re8 {[%clk 0:01:35]} 31. Kc3 {[%clk 0:01:02]}  Bf8 {[%clk 0:01:35]} 32. Nf5 {[%clk 0:00:53]}  Rb8 {[%clk 0:01:30]} 33. Kc2 {[%clk 0:00:49]}  Rb3 {[%clk 0:01:27]} 34. Re1 {[%clk 0:00:45]}  c3 {[%clk 0:01:25]} 35. bxc3 {[%clk 0:00:44]}  Bxa3 {[%clk 0:01:24]} 36. Ne7+ {[%clk 0:00:31]}  Kd6 {[%clk 0:01:17]} 37. Nf5+ {[%clk 0:00:30]}  Kd7 {[%clk 0:01:15]} 38. Ra1 {[%clk 0:00:30]}  Kc6 {[%clk 0:00:58]} 39. Nxh6 {[%clk 0:00:21]}  Kb5 {[%clk 0:00:51]} 40. Nxf7 {[%clk 0:00:20]}  Rb2+ {[%clk 0:00:40]} 41. Kd3 {[%clk 0:00:20]}  Rxf2 {[%clk 0:00:34]} 42. Nxg5 {[%clk 0:00:14]}  Bb2 {[%clk 0:00:32]} 43. Ra2 {[%clk 0:00:08]}  a3 {[%clk 0:00:28]} 44. Nf3 {[%clk 0:00:06]}  Rxg2 {[%clk 0:00:27]} 45. g5 {[%clk 0:00:06]}  Rg3 {[%clk 0:00:24]} 46. Ke3 {[%clk 0:00:06]}  Kc4 {[%clk 0:00:24]} 47. Kf2 {[%clk 0:00:06]}  Rxf3+ {[%clk 0:00:18]} 48. Kxf3 {[%clk 0:00:05]}  Kb3 {[%clk 0:00:19]} 49. Rxa3+ {[%clk 0:00:05]}  Bxa3 {[%clk 0:00:19]} 50. g6 {[%clk 0:00:04]}  Bf8 {[%clk 0:00:19]} 51. Kf4 {[%clk 0:00:03]}  Kxc3 {[%clk 0:00:19]} 52. Ke5 {[%clk 0:00:04]}  Kc4 {[%clk 0:00:19]} 53. Ke6 {[%clk 0:00:04]}  Kxd4 {[%clk 0:00:19]} 54. Kf7 {[%clk 0:00:05]}  Bh6 {[%clk 0:00:19]} 55. Kg8 {[%clk 0:00:04]}  Ke5 {[%clk 0:00:18]} 56. Kh7 {[%clk 0:00:05]}  Bf8 {[%clk 0:00:19]} 57. Kg8 {[%clk 0:00:05]}  Be7 {[%clk 0:00:15]} 58. Kf7 {[%clk 0:00:00]}  Bf6 {[%clk 0:00:16]} 0-1


[Site "https://www.chess.com"]

[Event "Titled Tuesday Blitz May 9 Late 2023"]
[White "Fathy, Elameir"]
[Black "Gonzalez, Francisco Silva"]
[WhiteFideId "10600396"]
[BlackFideId "1512285"]
[WhiteElo "2311"]
[BlackElo "2074"]
[Result "0-1"]
[Round "05"]
[TimeControl "180+2"]
[Date "2023.05.09"]
[WhiteClock "0:00:00"]
[BlackClock "0:00:48"]

1. d4 {[%clk 0:02:51]}  Nf6 {[%clk 0:02:59]} 2. c4 {[%clk 0:02:50]}  e6 {[%clk 0:02:58]} 3. Nf3 {[%clk 0:02:51]}  d5 {[%clk 0:02:58]} 4. Nc3 {[%clk 0:02:51]}  a6 {[%clk 0:02:57]} 5. c5 {[%clk 0:02:51]}  b6 {[%clk 0:02:57]} 6. cxb6 {[%clk 0:02:49]}  c5 {[%clk 0:02:57]} 7. dxc5 {[%clk 0:02:36]}  Bxc5 {[%clk 0:02:56]} 8. Na4 {[%clk 0:02:37]}  Bxb6 {[%clk 0:02:53]} 9. Nxb6 {[%clk 0:02:37]}  Qxb6 {[%clk 0:02:53]} 10. e3 {[%clk 0:02:37]}  Ne4 {[%clk 0:02:49]} 11. Bd3 {[%clk 0:02:31]}  Qb4+ {[%clk 0:02:49]} 12. Nd2 {[%clk 0:02:29]}  O-O {[%clk 0:02:44]} 13. O-O {[%clk 0:02:26]}  Bb7 {[%clk 0:02:39]} 14. a3 {[%clk 0:02:23]}  Qe7 {[%clk 0:02:34]} 15. f3 {[%clk 0:01:29]}  Nc5 {[%clk 0:02:32]} 16. Bc2 {[%clk 0:01:28]}  Nc6 {[%clk 0:02:31]} 17. b4 {[%clk 0:01:25]}  Nd7 {[%clk 0:02:30]} 18. Bb2 {[%clk 0:01:26]}  Nce5 {[%clk 0:02:31]} 19. Qe2 {[%clk 0:01:16]}  Rac8 {[%clk 0:02:30]} 20. Bb3 {[%clk 0:01:17]}  Qh4 {[%clk 0:02:19]} 21. Rac1 {[%clk 0:01:07]}  Rfe8 {[%clk 0:02:14]} 22. Ba4 {[%clk 0:01:00]}  Red8 {[%clk 0:02:12]} 23. Bd4 {[%clk 0:00:43]}  Qh5 {[%clk 0:01:58]} 24. Bb3 {[%clk 0:00:36]}  Nc6 {[%clk 0:01:49]} 25. Bb2 {[%clk 0:00:33]}  Nf6 {[%clk 0:01:49]} 26. Bxf6 {[%clk 0:00:31]}  gxf6 {[%clk 0:01:48]} 27. Rc5 {[%clk 0:00:23]}  Ne5 {[%clk 0:01:41]} 28. Rfc1 {[%clk 0:00:24]}  Qg6 {[%clk 0:01:32]} 29. Bc2 {[%clk 0:00:21]}  Rxc5 {[%clk 0:01:22]} 30. bxc5 {[%clk 0:00:20]}  Qh5 {[%clk 0:01:19]} 31. Bd3 {[%clk 0:00:19]}  a5 {[%clk 0:01:17]} 32. Bb5 {[%clk 0:00:17]}  d4 {[%clk 0:01:15]} 33. c6 {[%clk 0:00:12]}  d3 {[%clk 0:01:13]} 34. Qf2 {[%clk 0:00:12]}  Bc8 {[%clk 0:01:10]} 35. e4 {[%clk 0:00:09]}  Qh6 {[%clk 0:01:04]} 36. Rd1 {[%clk 0:00:06]}  f5 {[%clk 0:01:02]} 37. exf5 {[%clk 0:00:03]}  exf5 {[%clk 0:01:01]} 38. Qg3+ {[%clk 0:00:03]}  Ng6 {[%clk 0:00:57]} 39. Nc4 {[%clk 0:00:04]}  f4 {[%clk 0:00:52]} 40. Qf2 {[%clk 0:00:03]}  Qg5 {[%clk 0:00:52]} 41. Qb6 {[%clk 0:00:00]}  Nh4 {[%clk 0:00:48]} 0-1


[Site "https://www.chess.com"]